fUSD/lending_fUSD_20240412
["ID","MTS","AMOUNT","RATE_DAILY","PERIOD"]
[322337783,1712956345096,-1230.23,0.00048493,31]
[322337784,1712956345105,-500.0,0.00048493,31]
[322337785,1712956345116,-529.81,0.00048493,31]
[322337786,1712956345125,-500.0,0.00048493,31]
[322337787,1712956345134,-1773.86,0.00048493,31]
[322337788,1712956345144,-732.33,0.00048493,31]
[322337789,1712956345153,-2118.05,0.00048493,31]
[322337790,1712956345162,-645.62,0.00048493,31]
[322337791,1712956345171,-500.0,0.00048493,31]
[322337792,1712956345181,-546.03,0.00048493,31]
[322337793,1712956345191,-1198.72,0.00048493,31]
[322337794,1712956345200,-500.0,0.00048493,31]
[322337795,1712956345210,-199.26909994,0.00048493,31]
[322337796,1712956345219,-353.71,0.00048493,31]
[322337797,1712956345228,-2977.13,0.00048493,31]
[322337798,1712956345237,-500.0,0.00048493,31]
[322337799,1712956345247,-5708.25,0.00048493,31]
[322337800,1712956345257,-746.8,0.00048493,31]
[322337801,1712956345267,-500.0,0.00048493,31]
[322337802,1712956345277,-664.07,0.00048493,31]
[322337803,1712956345286,-500.0,0.00048493,31]
[322337804,1712956345296,-500.0,0.00048493,31]
[322337805,1712956345305,-1521.01,0.00048493,31]
[322337806,1712956345315,-2320.0,0.00048493,31]
[322337807,1712956345324,-601.66,0.00048493,31]
[322337808,1712956345336,-706.82,0.00048493,31]
[322337809,1712956345346,-3679.13,0.00048493,31]
[322337810,1712956345355,-500.0,0.00048493,31]
[322337811,1712956345365,-15731.26,0.00048493,31]
[322337812,1712956345376,-1058.86,0.00048493,31]
[322337813,1712956345386,-521.02,0.00048493,31]
[322337814,1712956345396,-1703.15,0.00048493,31]
[322337815,1712956345407,-1166.54,0.00048493,31]
[322337816,1712956345417,-2094.0,0.00048493,31]
[322337817,1712956345427,-151.0,0.00048493,14]
[322337818,1712956345436,-500.0,0.00048493,31]
[322337819,1712956345445,-2142.41,0.00048493,31]
[322337820,1712956345455,-500.0,0.00048493,31]
[322337821,1712956345465,-985.95,0.00048493,31]
[322337822,1712956345474,-937.11,0.00048493,31]
[322337823,1712956345484,-500.0,0.00048493,31]
[322337824,1712956345494,-500.0,0.00048493,31]
[322337825,1712956345504,-591.24,0.00048493,31]
[322337826,1712956345512,-691.8,0.00048493,31]
[322337827,1712956345522,-2120.81,0.00048493,31]
[322337828,1712956345531,-500.0,0.00048493,31]
[322337829,1712956345541,-534.15,0.00048493,31]
[322337830,1712956345550,-500.0,0.00048493,31]
[322337831,1712956345560,-512.64,0.00048493,31]
[322337832,1712956345570,-500.0,0.00048493,31]
[322337833,1712956345580,-812.89,0.00048493,31]
[322337834,1712956345590,-2419.16,0.00048493,31]
[322337835,1712956345601,-4130.71,0.00048493,31]
[322337836,1712956345611,-322.13920847,0.00048493,31]
[322337837,1712956345621,-151.0,0.00048493,14]
[322337838,1712956345631,-500.0,0.00048493,31]
[322337839,1712956345640,-3070.85,0.00048493,31]
[322337840,1712956345650,-1198.069053,0.00048493,14]
[322337841,1712956345660,-500.0,0.00048493,31]
[322337842,1712956345670,-500.0,0.00048493,31]
[322337843,1712956345679,-1198.069047,0.00048493,14]
[322337844,1712956345689,-756.68,0.00048493,31]
[322337845,1712956345698,-501.77,0.00048493,31]
[322337846,1712956345708,-500.0,0.00048493,31]
[322337847,1712956345718,-642.02,0.00048493,31]
[322337848,1712956345728,-679.55,0.00048493,31]
[322337849,1712956345737,-437.08688792,0.00048493,31]
[322337850,1712956345747,-190.6817,0.00048493,14]
[322337851,1712956345756,-1182.46,0.00048493,31]
[322337852,1712956345765,-500.0,0.00048493,31]
[322337853,1712956345774,-906.01,0.00048493,31]
[322337854,1712956345783,-718.33,0.00048493,31]
[322337855,1712956345793,-8113.01,0.00048493,31]
[322337856,1712956345802,-500.0,0.00048493,31]
[322337857,1712956345811,-190.681698,0.00048493,14]
[322337858,1712956345820,-151.0,0.00048493,14]
[322337859,1712956345830,-500.0,0.00048493,31]
[322337860,1712956345840,-552.54,0.00048493,31]
[322337861,1712956345851,-1691.75,0.00048493,31]
[322337862,1712956345860,-291.271005,0.00048493,14]
[322337863,1712956345870,-796.65,0.00048493,31]
[322337864,1712956345880,-500.0,0.00048493,31]
[322337865,1712956345889,-500.0,0.00048493,31]
[322337866,1712956345899,-291.270997,0.00048493,14]
[322337867,1712956345909,-500.0,0.00048493,31]
[322337868,1712956345920,-1931.38,0.00048493,31]
[322337869,1712956345929,-1038.17,0.00048493,31]
[322337870,1712956345939,-500.0,0.00048493,31]
[322337871,1712956345948,-1909.8,0.00048493,31]
[322337872,1712956345957,-500.0,0.00048493,31]
[322337873,1712956345967,-500.0,0.00048493,31]
[322337874,1712956345977,-500.0,0.00048493,31]
[322337875,1712956345986,-1375.31,0.00048493,31]
[322337876,1712956345997,-500.0,0.00048493,31]
[322337877,1712956346006,-201.31726621,0.00048493,31]
[322337878,1712956346016,-500.0,0.00048493,31]
[322337879,1712956346026,-3128.79,0.00048493,31]
[322337880,1712956346035,-276.037624,0.00048493,14]
[322337881,1712956346045,-2327.1,0.00048493,31]
[322337882,1712956346054,-18182.37,0.00048493,31]
[322337883,1712956346064,-500.0,0.00048493,31]
[322337884,1712956346074,-276.03763,0.00048493,14]
[322337885,1712956346084,-365.33422,0.00048493,14]
[322337886,1712956346093,-500.0,0.00048493,31]
[322337887,1712956346102,-6035.47,0.00048493,31]
[322337888,1712956346112,-2577.26,0.00048493,31]
[322337889,1712956346121,-500.0,0.00048493,31]
[322337890,1712956346131,-500.0,0.00048493,7]
[322337891,1712956346141,-151.0,0.00048493,14]
[322337892,1712956346150,-1143.56,0.00048493,31]
[322337893,1712956346160,-4212.38,0.00048493,31]
[322337894,1712956346169,-365.334229,0.00048493,14]
[322337895,1712956346178,-709.5,0.00048493,31]
[322337896,1712956346188,-688.0,0.00048493,31]
[322337897,1712956346197,-500.0,0.00048493,31]
[322337898,1712956346207,-220.89826733,0.00048493,31]
[322337899,1712956346217,-1251.78,0.00048493,31]
[322337900,1712956346227,-500.0,0.00048493,31]
[322337901,1712956346238,-1227.56,0.00048493,31]
[322337902,1712956346248,-500.0,0.00048493,31]
[322337903,1712956346257,-500.0,0.00048493,31]
[322337904,1712956346266,-579.98,0.00048493,31]
[322337905,1712956346275,-962.14,0.00048493,31]
[322337906,1712956346285,-526.36,0.00048493,31]
[322337907,1712956346295,-500.0,0.00048493,31]
[322337908,1712956346304,-500.0,0.00048493,31]
[322337909,1712956346315,-595.87,0.00048493,2]
[322337910,1712956346324,-500.0,0.00048493,31]
[322337911,1712956346337,-15043.16,0.00048493,31]
[322337912,1712956346348,-500.0,0.00048493,31]
[322337913,1712956346359,-3922.55,0.00048493,31]
[322337914,1712956346370,-500.0,0.00048493,31]
[322337915,1712956346380,-1614.08,0.00048493,31]
[322337916,1712956346390,-500.0,0.00048493,31]
[322337917,1712956346400,-529.92,0.00048493,31]
[322337918,1712956346411,-500.0,0.00048493,31]
[322337919,1712956346421,-500.0,0.00048493,31]
[322337920,1712956346431,-680.34,0.00048493,31]
[322337921,1712956346441,-5579.77,0.00048493,31]
[322337922,1712956346451,-500.0,0.00048493,31]
[322337923,1712956346460,-500.0,0.00048493,31]
[322337924,1712956346470,-500.0,0.00048493,31]
[322337925,1712956346481,-500.0,0.00048493,31]
[322337926,1712956346491,-500.0,0.00048493,31]
[322337927,1712956346502,-500.0,0.00048493,31]
[322337928,1712956346512,-500.0,0.00048493,31]
[322337929,1712956346522,-2156.38,0.00048493,31]
[322337930,1712956346531,-500.0,0.00048493,31]
[322337931,1712956346541,-454.53049567,0.00048493,31]
[322337932,1712956346551,-1171.95,0.00048493,31]
[322337933,1712956346562,-500.0,0.00048493,31]
[322337934,1712956346572,-500.0,0.00048493,31]
[322337935,1712956346581,-818.6,0.00048493,31]
[322337936,1712956346591,-1005.81,0.00048493,31]
[322337937,1712956346602,-213.43,0.00048493,31]
[322337938,1712956346610,-2445.94,0.00048493,31]
[322337939,1712956346620,-500.0,0.00048493,31]
[322337940,1712956346629,-1566.16,0.00048493,31]
[322337941,1712956346639,-1512.58,0.00048493,31]
[322337942,1712956346649,-3625.83,0.00048493,31]
[322337943,1712956346659,-500.0,0.00048493,31]
[322337944,1712956346669,-500.0,0.00048493,31]
[322337945,1712956346678,-542.02,0.00048493,31]
[322337946,1712956346687,-1559.05,0.00048493,31]
[322337947,1712956346697,-500.0,0.00048493,31]
[322337948,1712956346707,-500.0,0.00048493,31]
[322337949,1712956346717,-500.0,0.00048493,31]
[322337950,1712956346727,-1365.13,0.00048493,31]
[322337951,1712956346736,-500.0,0.00048493,31]
[322337952,1712956346745,-1937.56,0.00048493,31]
[322337953,1712956346756,-500.0,0.00048493,31]
[322337954,1712956346765,-500.0,0.00048493,31]
[322337955,1712956346775,-2496.98,0.00048493,31]
[322337956,1712956346786,-553.72,0.00048493,31]
[322337957,1712956346795,-500.0,0.00048493,31]
[322337958,1712956346805,-500.0,0.00048493,31]
[322337959,1712956346815,-1304.68,0.00048493,31]
[322337960,1712956346824,-500.0,0.00048493,31]
[322337961,1712956346834,-500.0,0.00048493,31]
[322337962,1712956346844,-500.0,0.00048493,31]
[322337963,1712956346853,-1112.77,0.00048493,31]
[322337964,1712956346863,-500.0,0.00048493,31]
[322337965,1712956346873,-500.0,0.00048493,31]
[322337966,1712956346882,-1261.76,0.00048493,31]
[322337967,1712956346892,-500.0,0.00048493,31]
[322337968,1712956346902,-500.0,0.00048493,31]
[322337969,1712956346911,-500.0,0.00048493,31]
[322337970,1712956346920,-2651.19,0.00048493,31]
[322337971,1712956346930,-1175.23,0.00048493,31]
[322337972,1712956346938,-653.52,0.00048493,31]
[322337973,1712956346948,-536.40844385,0.00048493,31]
[322337974,1712956346959,-1934.28,0.00048493,21]
[322337975,1712956346969,-507.1,0.00048493,31]
[322337976,1712956346979,-500.0,0.00048493,31]
[322337977,1712956346988,-854.38,0.00048493,31]
[322337978,1712956346998,-500.0,0.00048493,31]
[322337979,1712956347007,-1683.6,0.00048493,31]
[322337980,1712956347016,-829.4,0.00048493,31]
[322337981,1712956347026,-500.0,0.00048493,31]
[322337982,1712956347035,-500.0,0.00048493,31]
[322337983,1712956347044,-1255.75,0.00048493,31]
[322337984,1712956347054,-500.0,0.00048493,31]
[322337985,1712956347063,-150.0,0.000485,9]
[322337986,1712956347072,-154.37853735,0.00048514,70]
[322337987,1712956347081,-160.39711652,0.00048598,30]
[322337988,1712956347091,-664.08,0.000486,6]
[322337989,1712956347101,-664.08,0.000486,6]
[322337990,1712956347111,-664.08,0.000486,6]
[322337991,1712956347120,-664.08,0.000486,6]
[322337992,1712956347130,-664.08,0.000486,6]
[322337993,1712956347139,-664.08,0.000486,6]
[322337994,1712956347149,-664.08,0.000486,6]
[322337995,1712956347158,-664.08,0.000486,6]
[322337996,1712956347168,-664.08,0.000486,6]
[322337997,1712956347177,-664.08,0.000486,6]
[322337998,1712956347187,-664.08,0.000486,6]
[322337999,1712956347197,-664.08,0.000486,6]
[322338000,1712956347207,-664.08,0.000486,6]
[322338001,1712956347217,-664.08,0.000486,6]
[322338002,1712956347227,-664.08,0.000486,6]
[322338003,1712956347237,-664.08,0.000486,6]
[322338004,1712956347247,-664.08,0.000486,6]
[322338005,1712956347257,-664.08,0.000486,6]
[322338006,1712956347267,-664.08,0.000486,6]
[322338007,1712956347276,-664.08,0.000486,6]
[322338008,1712956347286,-247.36666667,0.00048603,120]
[322338009,1712956347296,-156.95151003,0.00048647,30]
[322338010,1712956347306,-500.0,0.00048649,30]
[322338011,1712956347315,-500.0,0.00048649,30]
[322338012,1712956347325,-600.0,0.00048649,30]
[322338013,1712956347338,-500.0,0.00048649,30]
[322338014,1712956347347,-264.01386,0.00048688,30]
[322338015,1712956347357,-150.22032791,0.0004874,60]
[322338016,1712956347367,-500.0,0.00048767,31]
[322338017,1712956347377,-303.25,0.00048767,31]
[322338018,1712956347388,-500.0,0.00048767,31]
[322338019,1712956347398,-199.94505156,0.00048767,31]
[322338020,1712956347409,-500.0,0.00048767,31]
[322338021,1712956347419,-500.0,0.00048767,31]
[322338022,1712956347428,-500.0,0.00048767,31]
[322338023,1712956347438,-500.0,0.00048767,31]
[322338024,1712956347448,-500.0,0.00048767,31]
[322338025,1712956347458,-500.0,0.00048767,31]
[322338026,1712956347467,-500.0,0.00048767,31]
[322338027,1712956347476,-500.0,0.00048767,2]
[322338028,1712956347486,-500.0,0.00048767,31]
[322338029,1712956347496,-500.0,0.00048767,31]
[322338030,1712956347506,-500.0,0.00048767,31]
[322338031,1712956347515,-327.03,0.00048767,31]
[322338032,1712956347525,-282.9,0.00048767,31]
[322338033,1712956347536,-192.59,0.00048767,31]
[322338034,1712956347546,-500.0,0.00048767,31]
[322338035,1712956347555,-500.0,0.00048767,31]
[322338036,1712956347565,-500.0,0.00048767,31]
[322338037,1712956347576,-500.0,0.00048767,31]
[322338038,1712956347585,-500.0,0.00048767,31]
[322338039,1712956347595,-500.0,0.00048767,31]
[322338040,1712956347608,-500.0,0.00048767,31]
[322338041,1712956347618,-500.0,0.00048767,31]
[322338042,1712956347627,-500.0,0.00048767,31]
[322338043,1712956347638,-500.0,0.00048767,31]
[322338044,1712956347649,-500.0,0.00048767,31]
[322338045,1712956347661,-500.0,0.00048767,31]
[322338046,1712956347672,-500.0,0.00048767,31]
[322338047,1712956347684,-500.0,0.00048767,31]
[322338048,1712956347696,-500.0,0.00048767,31]
[322338049,1712956347707,-500.0,0.00048767,31]
[322338050,1712956347718,-500.0,0.00048767,31]
[322338051,1712956347730,-500.0,0.00048767,31]
[322338052,1712956347741,-500.0,0.00048767,31]
[322338053,1712956347753,-500.0,0.00048767,31]
[322338054,1712956347763,-500.0,0.00048767,31]
[322338055,1712956347773,-500.0,0.00048767,31]
[322338056,1712956347783,-462.99341191,0.00048767,31]
[322338057,1712956347793,-500.0,0.00048767,31]
[322338058,1712956347804,-500.0,0.00048767,31]
[322338059,1712956347815,-500.0,0.00048767,31]
[322338060,1712956347826,-344.95,0.00048767,31]
[322338061,1712956347837,-500.0,0.00048767,31]
[322338062,1712956347848,-500.0,0.00048767,31]
[322338063,1712956347859,-304.88,0.00048767,31]
[322338064,1712956347871,-536.21719122,0.00048767,31]
[322338065,1712956347882,-500.0,0.00048767,31]
[322338066,1712956347893,-500.0,0.00048767,31]
[322338067,1712956347904,-500.0,0.00048767,31]
[322338068,1712956347916,-500.0,0.00048767,31]
[322338069,1712956347927,-622.99,0.00048767,31]
[322338070,1712956347938,-500.0,0.00048767,31]
[322338071,1712956347948,-500.0,0.00048767,31]
[322338072,1712956347960,-500.0,0.00048767,31]
[322338073,1712956347971,-312.79,0.00048767,31]
[322338074,1712956347982,-500.0,0.00048767,31]
[322338075,1712956347991,-566.24,0.00048767,31]
[322338076,1712956348001,-624.09,0.00048767,31]
[322338077,1712956348011,-500.0,0.00048767,31]
[322338078,1712956348022,-881.55,0.00048767,31]
[322338079,1712956348032,-244.21,0.00048767,31]
[322338080,1712956348043,-500.0,0.00048767,31]
[322338081,1712956348053,-1078.5,0.00048767,31]
[322338082,1712956348063,-468.6270038,0.00048767,31]
[322338083,1712956348074,-500.0,0.00048767,31]
[322338084,1712956348084,-500.0,0.00048767,31]
[322338085,1712956348094,-644.11,0.00048767,31]
[322338086,1712956348106,-500.0,0.00048767,31]
[322338087,1712956348115,-500.0,0.00048767,31]
[322338088,1712956348125,-500.0,0.00048767,31]
[322338089,1712956348135,-842.52,0.00048767,31]
[322338090,1712956348145,-500.0,0.00048767,31]
[322338091,1712956348155,-500.0,0.00048767,31]
[322338092,1712956348166,-1068.41,0.00048767,31]
[322338093,1712956348177,-500.0,0.00048767,31]
[322338094,1712956348187,-500.0,0.00048767,31]
[322338095,1712956348198,-500.0,0.00048767,31]
[322338096,1712956348208,-500.0,0.00048767,31]
[322338097,1712956348218,-500.0,0.00048767,31]
[322338098,1712956348228,-500.0,0.00048767,31]
[322338099,1712956348238,-523.4,0.00048767,31]
[322338100,1712956348248,-500.0,0.00048767,31]
[322338101,1712956348258,-250.17,0.00048767,31]
[322338102,1712956348270,-500.0,0.00048767,31]
[322338103,1712956348281,-500.0,0.00048767,31]
[322338104,1712956348292,-500.0,0.00048767,31]
[322338105,1712956348301,-500.0,0.00048767,31]
[322338106,1712956348312,-788.97,0.00048767,31]
[322338107,1712956348328,-500.0,0.00048767,31]
[322338108,1712956348341,-500.0,0.00048767,31]
[322338109,1712956348352,-530.04,0.00048767,31]
[322338110,1712956348362,-428.77,0.00048767,31]
[322338111,1712956348373,-500.0,0.00048767,31]
[322338112,1712956348384,-561.46,0.00048767,31]
[322338113,1712956348395,-500.0,0.00048767,31]
[322338114,1712956348405,-500.0,0.00048767,31]
[322338115,1712956348416,-500.0,0.00048767,31]
[322338116,1712956348426,-613.88,0.00048767,31]
[322338117,1712956348437,-500.0,0.00048767,31]
[322338118,1712956348447,-500.0,0.00048767,31]
[322338119,1712956348458,-500.0,0.00048767,31]
[322338120,1712956348469,-500.0,0.00048767,31]
[322338121,1712956348479,-773.28,0.00048767,31]
[322338122,1712956348490,-500.0,0.00048767,31]
[322338123,1712956348500,-500.0,0.00048767,31]
[322338124,1712956348511,-500.0,0.00048767,31]
[322338125,1712956348521,-269.49,0.00048767,31]
[322338126,1712956348532,-500.0,0.00048767,31]
[322338127,1712956348543,-500.0,0.00048767,31]
[322338128,1712956348554,-531.65,0.00048767,31]
[322338129,1712956348565,-500.0,0.00048767,31]
[322338130,1712956348576,-554.57,0.00048767,31]
[322338131,1712956348587,-644.29,0.00048767,31]
[322338132,1712956348599,-611.94,0.00048767,31]
[322338133,1712956348610,-500.0,0.00048767,31]
[322338134,1712956348621,-500.0,0.00048767,31]
[322338135,1712956348631,-500.0,0.00048767,31]
[322338136,1712956348642,-500.0,0.00048767,31]
[322338137,1712956348652,-654.94,0.00048767,31]
[322338138,1712956348662,-500.0,0.00048767,31]
[322338139,1712956348671,-500.0,0.00048767,31]
[322338140,1712956348681,-500.0,0.00048767,31]
[322338141,1712956348690,-500.0,0.00048767,31]
[322338142,1712956348700,-500.0,0.00048767,31]
[322338143,1712956348709,-500.0,0.00048767,31]
[322338144,1712956348719,-562.36,0.00048767,31]
[322338145,1712956348729,-233.8827748,0.00048767,31]
[322338146,1712956348740,-500.0,0.00048767,31]
[322338147,1712956348750,-500.0,0.00048767,31]
[322338148,1712956348761,-500.0,0.00048767,31]
[322338149,1712956348772,-752.36,0.00048767,31]
[322338150,1712956348783,-500.0,0.00048767,31]
[322338151,1712956348793,-500.0,0.00048767,31]
[322338152,1712956348803,-576.49,0.00048767,31]
[322338153,1712956348813,-500.0,0.00048767,31]
[322338154,1712956348823,-500.0,0.00048767,31]
[322338155,1712956348835,-500.0,0.00048767,31]
[322338156,1712956348845,-500.0,0.00048767,5]
[322338157,1712956348856,-500.0,0.00048767,31]
[322338158,1712956348866,-500.0,0.00048767,31]
[322338159,1712956348876,-500.0,0.00048767,31]
[322338160,1712956348886,-500.0,0.00048767,31]
[322338161,1712956348895,-1017.86,0.00048767,31]
[322338162,1712956348905,-500.0,0.00048767,31]
[322338163,1712956348914,-500.0,0.00048767,31]
[322338164,1712956348924,-208.79157619,0.00048767,31]
[322338165,1712956348933,-500.0,0.00048767,31]
[322338166,1712956348943,-531.53,0.00048767,31]
[322338167,1712956348953,-500.0,0.00048767,31]
[322338168,1712956348962,-500.0,0.00048767,31]
[322338169,1712956348972,-500.0,0.00048767,31]
[322338170,1712956348982,-500.0,0.00048767,31]
[322338171,1712956348991,-500.0,0.00048767,31]
[322338172,1712956349001,-665.37,0.00048767,31]
[322338173,1712956349011,-500.0,0.00048767,31]
[322338174,1712956349021,-500.0,0.00048767,31]
[322338175,1712956349030,-500.0,0.00048767,31]
[322338176,1712956349040,-500.0,0.00048767,31]
[322338177,1712956349050,-500.0,0.00048767,31]
[322338178,1712956349060,-500.0,0.00048767,31]
[322338179,1712956349070,-500.0,0.00048767,31]
[322338180,1712956349080,-500.0,0.00048767,31]
[322338181,1712956349089,-539.48,0.00048767,31]
[322338182,1712956349100,-500.0,0.00048767,31]
[322338183,1712956349110,-500.0,0.00048767,31]
[322338184,1712956349119,-500.0,0.00048767,31]
[322338185,1712956349129,-500.0,0.00048767,31]
[322338186,1712956349139,-500.0,0.00048767,31]
[322338187,1712956349149,-500.0,0.00048767,31]
[322338188,1712956349159,-500.0,0.00048767,31]
[322338189,1712956349169,-786.37,0.00048767,31]
[322338190,1712956349178,-498.17975144,0.00048767,31]
[322338191,1712956349188,-500.0,0.00048767,31]
[322338192,1712956349198,-777.13,0.00048767,31]
[322338193,1712956349207,-1047.03,0.00048767,31]
[322338194,1712956349217,-500.0,0.00048767,31]
[322338195,1712956349226,-500.0,0.00048767,31]
[322338196,1712956349236,-500.0,0.00048767,31]
[322338197,1712956349246,-409.09,0.00048767,31]
[322338198,1712956349255,-270.06,0.00048767,31]
[322338199,1712956349265,-551.41,0.00048767,31]
[322338200,1712956349275,-500.0,0.00048767,2]
[322338201,1712956349284,-500.0,0.00048767,31]
[322338202,1712956349294,-619.8,0.00048767,31]
[322338203,1712956349304,-500.0,0.00048767,31]
[322338204,1712956349314,-590.98,0.00048767,31]
[322338205,1712956349324,-500.0,0.00048767,31]
[322338206,1712956349337,-500.0,0.00048767,31]
[322338207,1712956349347,-500.0,0.00048767,31]
[322338208,1712956349358,-500.0,0.00048767,31]
[322338209,1712956349369,-500.0,0.00048767,31]
[322338210,1712956349379,-500.0,0.00048767,31]
[322338211,1712956349390,-500.0,0.00048767,31]
[322338212,1712956349400,-500.0,0.00048767,31]
[322338213,1712956349410,-500.0,0.00048767,31]
[322338214,1712956349420,-500.0,0.00048767,31]
[322338215,1712956349430,-500.0,0.00048767,31]
[322338216,1712956349440,-525.7,0.00048767,31]
[322338217,1712956349450,-520.28457556,0.00048767,31]
[322338218,1712956349459,-500.0,0.00048767,31]
[322338219,1712956349469,-500.0,0.00048767,31]
[322338220,1712956349479,-571.13,0.00048767,31]
[322338221,1712956349488,-500.0,0.00048767,31]
[322338222,1712956349498,-500.0,0.00048767,31]
[322338223,1712956349508,-620.52,0.00048767,31]
[322338224,1712956349518,-717.8,0.00048767,31]
[322338225,1712956349527,-676.11,0.00048767,31]
[322338226,1712956349539,-500.0,0.00048767,31]
[322338227,1712956349549,-500.0,0.00048767,31]
[322338228,1712956349559,-500.0,0.00048767,31]
[322338229,1712956349569,-696.14,0.00048767,31]
[322338230,1712956349579,-500.0,0.00048767,31]
[322338231,1712956349589,-681.42,0.00048767,31]
[322338232,1712956349600,-500.0,0.00048767,31]
[322338233,1712956349610,-500.0,0.00048767,31]
[322338234,1712956349620,-500.0,0.00048767,31]
[322338235,1712956349630,-500.0,0.00048767,31]
[322338236,1712956349641,-500.0,0.00048767,31]
[322338237,1712956349651,-643.83,0.00048767,31]
[322338238,1712956349661,-500.0,0.00048767,31]
[322338239,1712956349671,-500.0,0.00048767,31]
[322338240,1712956349682,-152.98,0.00048767,31]
[322338241,1712956349692,-1817.19,0.00048767,31]
[322338242,1712956349702,-500.0,0.00048767,31]
[322338243,1712956349712,-500.0,0.00048767,31]
[322338244,1712956349722,-519.91,0.00048767,31]
[322338245,1712956349732,-500.0,0.00048767,31]
[322338246,1712956349742,-500.0,0.00048767,31]
[322338247,1712956349752,-500.0,0.00048767,31]
[322338248,1712956349762,-500.0,0.00048767,31]
[322338249,1712956349772,-549.01570331,0.00048767,31]
[322338250,1712956349781,-665.13,0.00048767,31]
[322338251,1712956349791,-500.0,0.00048767,31]
[322338252,1712956349801,-500.0,0.00048767,31]
[322338253,1712956349810,-500.0,0.00048767,31]
[322338254,1712956349820,-500.0,0.00048767,31]
[322338255,1712956349830,-500.0,0.00048767,31]
[322338256,1712956349840,-500.0,0.00048767,31]
[322338257,1712956349851,-8352.31,0.00048767,31]
[322338258,1712956349860,-500.0,0.00048767,31]
[322338259,1712956349870,-649.27,0.00048767,31]
[322338260,1712956349880,-791.6,0.00048767,31]
[322338261,1712956349889,-500.0,0.00048767,31]
[322338262,1712956349899,-500.0,0.00048767,31]
[322338263,1712956349908,-511.51,0.00048767,7]
[322338264,1712956349919,-1945.07,0.00048767,31]
[322338265,1712956349928,-684.24,0.00048767,31]
[322338266,1712956349938,-674.93,0.00048767,31]
[322338267,1712956349947,-500.0,0.00048767,31]
[322338268,1712956349957,-1181.86,0.00048767,31]
[322338269,1712956349967,-500.0,0.00048767,31]
[322338270,1712956349977,-500.0,0.00048767,31]
[322338271,1712956349986,-500.0,0.00048767,31]
[322338272,1712956349996,-500.0,0.00048767,31]
[322338273,1712956350006,-500.0,0.00048767,31]
[322338274,1712956350015,-696.23,0.00048767,31]
[322338275,1712956350025,-500.0,0.00048767,31]
[322338276,1712956350035,-633.15,0.00048767,31]
[322338277,1712956350045,-500.0,0.00048767,31]
[322338278,1712956350056,-1356.46,0.00048767,31]
[322338279,1712956350066,-500.0,0.00048767,31]
[322338280,1712956350076,-2478.45,0.00048767,31]
[322338281,1712956350086,-500.0,0.00048767,31]
[322338282,1712956350096,-500.0,0.00048767,31]